[Event "Teplice Open 2019"]
[Site "Teplice"]
[Date "2019.06.22"]
[Round "8.14"]
[White "Baum, Jonasz"]
[Black "Plat, Vojtech"]
[Result "0-1"]
[ECO "D76"]
[WhiteElo "2295"]
[BlackElo "2547"]
[Annotator "ChessBase"]
[PlyCount "132"]
[EventDate "2019.06.15"]
[EventType "swiss"]
[EventCountry "CZE"]
[SourceTitle "playchess.com"]
[Source "ChessBase"]
[SourceQuality "1"]
[TimeControl "40/5400+30:1800+30"]

1. d4 {[%emt 0:00:00]} Nf6 {[%emt 0:03:44]} 2. c4 {[%emt 0:00:00]} g6 {[%emt 0:00:06]} 3. Nf3 {[%emt 0:00:00]} Bg7 {[%emt 0:00:07]} 4. g3 {[%emt 0:00:00]} d5 {[%emt 0:00:05]} 5. cxd5 {[%emt 0:00:19]} Nxd5 {[%emt 0:00:05]} 6. Bg2 {[%emt 0:00:24]} Nb6 {[%emt 0:00:03]} 7. O-O {[%emt 0:01:01]} Nc6 {[%emt 0:00:04]} 8. Nc3 {[%emt 0:06:24]} O-O {[%emt 0:01:09]} 9. d5 {[%emt 0:00:03]} Na5 {[%emt 0:02:16]} 10. Qc2 {[%emt 0:00:04]} c6 {[%emt 0:02:56]} 11. dxc6 {[%emt 0:00:13]} Nxc6 {[%emt 0:00:06]} 12. Rd1 {[%emt 0:00:04]} Qe8 {[%emt 0:00:18]} 13. Qe4 {[%emt 0:00:22]} Bf5 {[%emt 0:05:36]} 14. Qh4 {[%emt 0:00:05]} f6 {[%emt 0:00:20]} 15. g4 {[%emt 0:00:18]} g5 {[%emt 0:02:00]} 16. Qg3 {[%emt 0:08:50]} Bc2 {[%emt 0:00:21]} 17. Rd2 {[%emt 0:06:46]} Bg6 {[%emt 0:00:05]} 18. b3 {[%emt 0:01:37]} f5 {[%emt 0:07:36]} 19. Bb2 {[%emt 0:00:55]} f4 {[%emt 0:00:06]} 20. Qh3 {[%emt 0:00:04]} h6 {[%emt 0:00:08]} 21. Nb5 {[%emt 0:08:42]} Rd8 {[%emt 0:03:46]} 22. Bxg7 {[%emt 0:00:27]} Kxg7 {[%emt 0:00:05]} 23. Nbd4 {[%emt 0:11:08]} Nxd4 {[%emt 0:01:39]} 24. Nxd4 {[%emt 0:01:29]} e5 {[%emt 0:02:29]} 25. Nf5+ {[%emt 0:00:55]} Bxf5 {[%emt 0:00:35]} 26. Rxd8 {[%emt 0:00:05]} Qxd8 {[%emt 0:00:03]} 27. gxf5 {[%emt 0:00:05]} Qd2 {[%emt 0:06:32]} 28. Qh5 {[%emt 0:02:45]} Rxf5 {[%emt 0:01:26]} 29. Be4 {[%emt 0:11:04]} Rf6 {[%emt 0:03:51]} 30. Qe8 {[%emt 0:00:49]} Qd6 {[%emt 0:05:33]} 31. Rc1 {[%emt 0:00:27]} Rf8 {[%emt 0:01:59]} 32. Qh5 {[%emt 0:01:59]} Rc8 {[%emt 0:04:40]} 33. Rxc8 {[%emt 0:01:04]} Nxc8 {[%emt 0:00:04]} 34. h4 {[%emt 0:10:34]} Qf6 {[%emt 0:02:36]} 35. Qe8 {[%emt 0:10:03]} Nd6 {[%emt 0:00:04]} 36. Qd7+ {[%emt 0:00:07]} Kf8 {[%emt 0:00:04]} 37. Bxb7 {[%emt 0:03:17]} Qe7 {[%emt 0:00:26]} 38. Qxe7+ {[%emt 0:00:34]} Kxe7 {[%emt 0:00:01]} 39. Ba8 {[%emt 0:01:28]} gxh4 {[%emt 0:00:06]} 40. Kg2 {[%emt 0:06:53]} Nb5 {[%emt 0:04:14]} 41. e3 {[%emt 0:30:53]} fxe3 {[%emt 0:30:05]} 42. fxe3 {[%emt 0:00:01]} Nc3 {[%emt 0:00:15]} 43. Kh3 {[%emt 0:06:34]} Nxa2 {[%emt 0:00:36]} 44. Kxh4 {[%emt 0:00:04]} Nc3 {[%emt 0:02:30]} 45. Kh5 {[%emt 0:00:28]} Kf6 {[%emt 0:00:03]} 46. e4 {[%emt 0:00:00]} Kg7 {[%emt 0:00:00]} 47. Bc6 {[%emt 0:00:00]} a5 {[%emt 0:00:00]} 48. Kg4 {[%emt 0:00:00]} Kg6 {[%emt 0:00:00]} 49. Kh4 {[%emt 0:00:00]} Ne2 {[%emt 0:00:00]} 50. Be8+ {[%emt 0:00:00]} Kf6 {[%emt 0:00:00]} 51. Bc6 {[%emt 0:00:00]} Nf4 {[%emt 0:00:00]} 52. Kg4 {[%emt 0:00:00]} h5+ {[%emt 0:00:00]} 53. Kh4 {[%emt 0:00:00]} Kg6 {[%emt 0:00:00]} 54. Be8+ {[%emt 0:00:00]} Kh6 {[%emt 0:00:00]} 55. Bf7 {[%emt 0:00:00]} Ng6+ {[%emt 0:00:00]} 56. Kg3 {[%emt 0:00:00]} Kg5 {[%emt 0:00:00]} 57. Kh3 {[%emt 0:00:00]} Nf4+ {[%emt 0:00:00]} 58. Kg3 {[%emt 0:00:00]} Ne2+ {[%emt 0:00:00]} 59. Kf3 {[%emt 0:00:00]} Nd4+ {[%emt 0:00:00]} 60. Kg3 {[%emt 0:00:00]} h4+ {[%emt 0:00:00]} 61. Kh3 {[%emt 0:00:00]} Ne2 {[%emt 0:00:00]} 62. Kg2 {[%emt 0:00:00]} Kg4 {[%emt 0:00:00]} 63. Be6+ {[%emt 0:00:00]} Kf4 {[%emt 0:00:00]} 64. Kh3 {[%emt 0:00:00]} Kg5 {[%emt 0:00:00]} 65. Bd7 {[%emt 0:00:00]} Nf4+ {[%emt 0:00:00]} 66. Kh2 {[%emt 0:00:00]} Kf6 {[%emt 0:00:00]} 0-1

[Event "Teplice Open 2019"]
[Site "Teplice"]
[Date "2019.06.22"]
[Round "8.15"]
[White "Ali Marandi, Cemil Can"]
[Black "Erenberg, Ariel"]
[Result "1-0"]
[ECO "D43"]
[WhiteElo "2520"]
[BlackElo "2434"]
[Annotator "ChessBase"]
[PlyCount "113"]
[EventDate "2019.06.15"]
[EventType "swiss"]
[EventCountry "CZE"]
[SourceTitle "playchess.com"]
[Source "ChessBase"]
[SourceQuality "1"]
[TimeControl "40/5400+30:1800+30"]

1. d4 {[%emt 0:00:31]} Nf6 {[%emt 0:00:10]} 2. Nf3 {[%emt 0:00:07]} e6 {[%emt 0:00:38]} 3. Bg5 {[%emt 0:00:14]} d5 {[%emt 0:01:01]} 4. c4 {[%emt 0:00:30]} h6 {[%emt 0:08:11]} 5. Bxf6 {[%emt 0:02:25]} Qxf6 {[%emt 0:00:07]} 6. Nc3 {[%emt 0:00:14]} c6 {[%emt 0:04:53]} 7. e3 {[%emt 0:00:32]} g6 {[%emt 0:00:48]} 8. Bd3 {[%emt 0:02:45]} Bg7 {[%emt 0:01:33]} 9. O-O {[%emt 0:02:35]} O-O {[%emt 0:00:44]} 10. e4 {[%emt 0:00:18]} dxc4 {[%emt 0:01:35]} 11. Bxc4 {[%emt 0:01:37]} Qe7 {[%emt 0:02:57]} 12. e5 {[%emt 0:01:28]} Nd7 {[%emt 0:03:50]} 13. Re1 {[%emt 0:05:42]} b6 {[%emt 0:04:48]} 14. Ne4 {[%emt 0:05:50]} c5 {[%emt 0:10:02]} 15. Nd6 {[%emt 0:00:17]} cxd4 {[%emt 0:12:22]} 16. Qxd4 {[%emt 0:00:15]} Rb8 {[%emt 0:14:51]} 17. Rac1 {[%emt 0:02:22]} Rd8 {[%emt 0:03:43]} 18. Red1 {[%emt 0:00:53]} Bb7 {[%emt 0:06:51]} 19. Nxb7 {[%emt 0:01:16]} Rxb7 {[%emt 0:00:02]} 20. Bb5 {[%emt 0:00:16]} a6 {[%emt 0:01:21]} 21. Bxa6 {[%emt 0:05:10]} Rbb8 {[%emt 0:00:23]} 22. Qe3 {[%emt 0:03:21]} Nc5 {[%emt 0:00:38]} 23. Bb5 {[%emt 0:03:01]} Rxd1+ {[%emt 0:00:11]} 24. Rxd1 {[%emt 0:00:02]} Rd8 {[%emt 0:00:06]} 25. Rc1 {[%emt 0:00:12]} Rd5 {[%emt 0:11:03]} 26. Bc6 {[%emt 0:19:38]} Rd8 {[%emt 0:01:17]} 27. Bb5 {[%emt 0:02:59]} Rd5 {[%emt 0:00:04]} 28. b4 {[%emt 0:07:04]} Nb3 {[%emt 0:00:23]} 29. Rc8+ {[%emt 0:00:16]} Kh7 {[%emt 0:00:10]} 30. Bc4 {[%emt 0:00:16]} Rd1+ {[%emt 0:00:45]} 31. Bf1 {[%emt 0:00:06]} Qd7 {[%emt 0:01:46]} 32. Qxb3 {[%emt 0:00:35]} Rxf1+ {[%emt 0:00:04]} 33. Kxf1 {[%emt 0:00:05]} Qxc8 {[%emt 0:00:03]} 34. g3 {[%emt 0:02:18]} Qc1+ {[%emt 0:02:53]} 35. Kg2 {[%emt 0:00:51]} Qc6 {[%emt 0:00:10]} 36. Qe3 {[%emt 0:00:27]} Bf8 {[%emt 0:00:15]} 37. a3 {[%emt 0:01:40]} Kg7 {[%emt 0:01:09]} 38. h4 {[%emt 0:00:56]} Be7 {[%emt 0:00:12]} 39. Qd3 {[%emt 0:01:47]} h5 {[%emt 0:01:59]} 40. Kh2 {[%emt 0:03:11]} Qc7 {[%emt 0:00:24]} 41. Qe3 {[%emt 0:31:49]} Qc6 {[%emt 0:31:01]} 42. Nd4 {[%emt 0:01:44]} Qd5 {[%emt 0:00:45]} 43. Ne2 {[%emt 0:00:08]} Bd8 {[%emt 0:02:14]} 44. Qd4 {[%emt 0:03:15]} Qf3 {[%emt 0:02:52]} 45. Ng1 {[%emt 0:03:46]} Qa8 {[%emt 0:00:00]} 46. Qd7 {[%emt 0:00:00]} g5 {[%emt 0:00:00]} 47. hxg5 {[%emt 0:00:00]} Bxg5 {[%emt 0:00:00]} 48. Nh3 {[%emt 0:00:00]} Bc1 {[%emt 0:00:00]} 49. Qc7 {[%emt 0:00:00]} Bxa3 {[%emt 0:00:00]} 50. Qc3 {[%emt 0:01:32]} Qa4 {[%emt 0:00:00]} 51. Nf4 {[%emt 0:00:47]} Qxb4 {[%emt 0:00:00]} 52. Nxh5+ {[%emt 0:00:47]} Kg6 {[%emt 0:01:10]} 53. Qf3 {[%emt 0:00:58]} Bc1 {[%emt 0:01:06]} 54. Qf6+ {[%emt 0:02:22]} Kxh5 {[%emt 0:00:19]} 55. f3 {[%emt 0:00:04]} Bf4 {[%emt 0:01:15]} 56. gxf4 {[%emt 0:00:20]} Qd2+ {[%emt 0:01:54]} 57. Kh3 {[%emt 0:00:07]} 1-0

[Event "Teplice Open 2019"]
[Site "Teplice"]
[Date "2019.06.22"]
[Round "8.16"]
[White "Siddharth, Jagadeesh"]
[Black "Krzyzanowski, Marcin"]
[Result "1-0"]
[ECO "E62"]
[WhiteElo "2416"]
[BlackElo "2510"]
[Annotator "ChessBase"]
[PlyCount "102"]
[EventDate "2019.06.15"]
[EventType "swiss"]
[EventCountry "CZE"]
[SourceTitle "playchess.com"]
[Source "ChessBase"]
[SourceQuality "1"]
[TimeControl "40/5400+30:1800+30"]

1. d4 {[%emt 0:00:00]} Nf6 {[%emt 0:01:42]} 2. c4 {[%emt 0:00:00]} d6 {[%emt 0:01:03]} 3. Nf3 {[%emt 0:00:00]} g6 {[%emt 0:00:04]} 4. g3 {[%emt 0:00:04]} Bg7 {[%emt 0:00:03]} 5. Bg2 {[%emt 0:00:07]} O-O {[%emt 0:00:35]} 6. O-O {[%emt 0:00:08]} Nc6 {[%emt 0:00:00]} 7. Nc3 {[%emt 0:00:05]} Bg4 {[%emt 0:00:00]} 8. d5 {[%emt 0:00:07]} Na5 {[%emt 0:00:00]} 9. b3 {[%emt 0:00:06]} c5 {[%emt 0:00:04]} 10. Bb2 {[%emt 0:00:05]} a6 {[%emt 0:00:36]} 11. Qc2 {[%emt 0:00:13]} Rb8 {[%emt 0:00:46]} 12. Nd2 {[%emt 0:00:22]} b5 {[%emt 0:01:22]} 13. Rfe1 {[%emt 0:00:19]} bxc4 {[%emt 0:05:00]} 14. bxc4 {[%emt 0:02:18]} e5 {[%emt 0:03:14]} 15. Nd1 {[%emt 0:00:44]} h5 {[%emt 0:04:27]} 16. Bc3 {[%emt 0:09:45]} Bd7 {[%emt 0:01:15]} 17. f4 {[%emt 0:00:24]} Ng4 {[%emt 0:09:38]} 18. h3 {[%emt 0:09:09]} Nh6 {[%emt 0:00:46]} 19. fxe5 {[%emt 0:00:45]} dxe5 {[%emt 0:01:08]} 20. e4 {[%emt 0:00:51]} Nb7 {[%emt 0:02:12]} 21. Nf3 {[%emt 0:04:35]} Re8 {[%emt 0:01:59]} 22. Qc1 {[%emt 0:12:51]} f6 {[%emt 0:04:03]} 23. Bd2 {[%emt 0:11:45]} Nf7 {[%emt 0:00:34]} 24. Nf2 {[%emt 0:09:59]} Nbd6 {[%emt 0:04:39]} 25. Be3 {[%emt 0:01:27]} Qc7 {[%emt 0:04:56]} 26. Nd2 {[%emt 0:02:05]} Rb6 {[%emt 0:15:36]} 27. Nd3 {[%emt 0:02:28]} Nb7 {[%emt 0:01:42]} 28. Nb3 {[%emt 0:00:01]} Bf8 {[%emt 0:00:57]} 29. Qc3 {[%emt 0:05:04]} f5 {[%emt 0:03:26]} 30. Na5 {[%emt 0:05:05]} Nxa5 {[%emt 0:04:32]} 31. Qxa5 {[%emt 0:00:02]} Rc8 {[%emt 0:00:07]} 32. h4 {[%emt 0:09:26]} fxe4 {[%emt 0:02:13]} 33. Nf2 {[%emt 0:01:31]} Nd6 {[%emt 0:01:44]} 34. Rac1 {[%emt 0:03:02]} Bf5 {[%emt 0:03:09]} 35. Bg5 {[%emt 0:04:16]} Rb2 {[%emt 0:05:40]} 36. Qxa6 {[%emt 0:02:06]} Rcb8 {[%emt 0:00:04]} 37. Nd1 {[%emt 0:00:27]} R2b4 {[%emt 0:04:44]} 38. Ne3 {[%emt 0:00:29]} Bd7 {[%emt 0:00:04]} 39. Qa3 {[%emt 0:02:41]} Ra4 {[%emt 0:08:38]} 40. Qc3 {[%emt 0:00:08]} Bg7 {[%emt 0:01:02]} 41. Qc2 {[%emt 0:31:22]} Qa5 {[%emt 0:33:39]} 42. Ra1 {[%emt 0:01:31]} Ra3 {[%emt 0:01:14]} 43. Bxe4 {[%emt 0:01:24]} Rc3 {[%emt 0:00:00]} 44. Qg2 {[%emt 0:00:00]} Bf5 {[%emt 0:00:00]} 45. Bxf5 {[%emt 0:00:00]} gxf5 {[%emt 0:00:00]} 46. Be7 {[%emt 0:00:00]} Bh6 {[%emt 0:00:00]} 47. Bxd6 {[%emt 0:00:00]} Bxe3+ {[%emt 0:00:00]} 48. Kh1 {[%emt 0:00:00]} Rd8 {[%emt 0:00:43]} 49. Bxe5 {[%emt 0:00:00]} Bd4 {[%emt 0:00:03]} 50. Bxd4 {[%emt 0:00:00]} cxd4 {[%emt 0:00:04]} 51. Qd2 {[%emt 0:05:25]} Ra8 {[%emt 0:00:17]} 1-0

[Event "Teplice Open 2019"]
[Site "Teplice"]
[Date "2019.06.22"]
[Round "8.17"]
[White "Gumularz, Szymon"]
[Black "Efroimski, Marsel"]
[Result "1/2-1/2"]
[ECO "D02"]
[WhiteElo "2495"]
[BlackElo "2327"]
[Annotator "ChessBase"]
[PlyCount "79"]
[EventDate "2019.06.15"]
[EventType "swiss"]
[EventCountry "CZE"]
[SourceTitle "playchess.com"]
[Source "ChessBase"]
[SourceQuality "1"]
[TimeControl "40/5400+30:1800+30"]

1. d4 {[%emt 0:00:00]} e6 {[%emt 0:00:00]} 2. Bf4 {[%emt 0:00:00]} d5 {[%emt 0:00:00]} 3. e3 {[%emt 0:00:00]} Nf6 {[%emt 0:00:00]} 4. Nd2 {[%emt 0:00:14]} Bd6 {[%emt 0:00:02]} 5. Ngf3 {[%emt 0:00:10]} O-O {[%emt 0:00:09]} 6. Bg3 {[%emt 0:00:16]} b6 {[%emt 0:01:04]} 7. c3 {[%emt 0:00:54]} c5 {[%emt 0:00:06]} 8. Bd3 {[%emt 0:00:09]} Ba6 {[%emt 0:00:34]} 9. Bxa6 {[%emt 0:06:41]} Nxa6 {[%emt 0:00:02]} 10. Qe2 {[%emt 0:00:07]} Nc7 {[%emt 0:15:15]} 11. Ne5 {[%emt 0:01:13]} Nce8 {[%emt 0:03:56]} 12. O-O {[%emt 0:03:18]} Qc7 {[%emt 0:06:14]} 13. a4 {[%emt 0:35:24]} Nd7 {[%emt 0:05:55]} 14. Nxd7 {[%emt 0:03:22]} Qxd7 {[%emt 0:00:06]} 15. a5 {[%emt 0:00:16]} Bxg3 {[%emt 0:01:50]} 16. hxg3 {[%emt 0:00:52]} Nd6 {[%emt 0:05:22]} 17. Ra2 {[%emt 0:02:32]} Qb7 {[%emt 0:13:54]} 18. Rfa1 {[%emt 0:06:42]} c4 {[%emt 0:07:29]} 19. e4 {[%emt 0:04:50]} dxe4 {[%emt 0:05:01]} 20. Nxc4 {[%emt 0:00:48]} Nxc4 {[%emt 0:10:08]} 21. Qxc4 {[%emt 0:00:15]} b5 {[%emt 0:04:03]} 22. a6 {[%emt 0:02:31]} Qd5 {[%emt 0:01:36]} 23. Qe2 {[%emt 0:07:43]} Rab8 {[%emt 0:00:57]} 24. Ra5 {[%emt 0:00:10]} Rb6 {[%emt 0:01:40]} 25. Re1 {[%emt 0:09:08]} f5 {[%emt 0:00:19]} 26. f3 {[%emt 0:00:42]} exf3 {[%emt 0:03:13]} 27. gxf3 {[%emt 0:00:16]} Rd8 {[%emt 0:06:57]} 28. Kg2 {[%emt 0:08:07]} Qc6 {[%emt 0:00:56]} 29. Qe5 {[%emt 0:06:22]} Rd5 {[%emt 0:00:16]} 30. Qf4 {[%emt 0:00:01]} h6 {[%emt 0:01:03]} 31. Re5 {[%emt 0:00:36]} g5 {[%emt 0:02:29]} 32. Qe3 {[%emt 0:00:21]} Rxe5 {[%emt 0:00:59]} 33. dxe5 {[%emt 0:00:13]} Rxa6 {[%emt 0:00:26]} 34. Rxa6 {[%emt 0:00:30]} Qxa6 {[%emt 0:00:04]} 35. Qd4 {[%emt 0:00:24]} Qb7 {[%emt 0:01:33]} 36. Qd8+ {[%emt 0:01:51]} Kh7 {[%emt 0:00:08]} 37. Kh2 {[%emt 0:00:05]} Qxf3 {[%emt 0:03:50]} 38. Qe7+ {[%emt 0:00:18]} Kg6 {[%emt 0:00:31]} 39. Qe8+ {[%emt 0:00:08]} Kg7 {[%emt 0:00:10]} 40. Qe7+ {[%emt 0:00:05]} 1/2-1/2

[Event "Teplice Open 2019"]
[Site "Teplice"]
[Date "2019.06.22"]
[Round "8.19"]
[White "Loiseau, Quentin"]
[Black "Czerw, Dawid"]
[Result "1-0"]
[ECO "D45"]
[WhiteElo "2471"]
[BlackElo "2317"]
[Annotator "ChessBase"]
[PlyCount "157"]
[EventDate "2019.06.15"]
[EventType "swiss"]
[EventCountry "CZE"]
[SourceTitle "playchess.com"]
[Source "ChessBase"]
[SourceQuality "1"]
[TimeControl "40/5400+30:1800+30"]

1. d4 {[%emt 0:02:38]} Nf6 {[%emt 0:00:00]} 2. c4 {[%emt 0:00:11]} e6 {[%emt 0:00:00]} 3. Nf3 {[%emt 0:00:07]} d5 {[%emt 0:00:00]} 4. Nc3 {[%emt 0:01:03]} c6 {[%emt 0:00:00]} 5. e3 {[%emt 0:01:18]} a6 {[%emt 0:01:16]} 6. c5 {[%emt 0:01:18]} Nbd7 {[%emt 0:02:52]} 7. Qc2 {[%emt 0:00:50]} Be7 {[%emt 0:10:26]} 8. b4 {[%emt 0:05:10]} O-O {[%emt 0:08:02]} 9. Bd3 {[%emt 0:01:48]} Qc7 {[%emt 0:01:36]} 10. Bb2 {[%emt 0:00:48]} b6 {[%emt 0:01:20]} 11. a3 {[%emt 0:08:57]} a5 {[%emt 0:10:18]} 12. Rc1 {[%emt 0:17:12]} axb4 {[%emt 0:01:12]} 13. axb4 {[%emt 0:00:08]} bxc5 {[%emt 0:00:23]} 14. bxc5 {[%emt 0:02:15]} Ba6 {[%emt 0:01:14]} 15. O-O {[%emt 0:00:38]} Bxd3 {[%emt 0:03:51]} 16. Qxd3 {[%emt 0:00:15]} Rfb8 {[%emt 0:04:33]} 17. Qc2 {[%emt 0:01:04]} e5 {[%emt 0:03:30]} 18. h3 {[%emt 0:06:36]} exd4 {[%emt 0:06:39]} 19. exd4 {[%emt 0:00:02]} Nf8 {[%emt 0:00:38]} 20. Ra1 {[%emt 0:00:32]} Ne6 {[%emt 0:00:59]} 21. Rxa8 {[%emt 0:01:22]} Rxa8 {[%emt 0:00:02]} 22. Bc1 {[%emt 0:01:18]} Nd7 {[%emt 0:02:52]} 23. Be3 {[%emt 0:00:32]} g6 {[%emt 0:02:41]} 24. Ne2 {[%emt 0:02:07]} f5 {[%emt 0:01:50]} 25. Qc1 {[%emt 0:01:25]} Bf6 {[%emt 0:02:11]} 26. Nf4 {[%emt 0:00:28]} Ndf8 {[%emt 0:02:56]} 27. Re1 {[%emt 0:08:02]} Qg7 {[%emt 0:11:09]} 28. Nxe6 {[%emt 0:03:02]} Nxe6 {[%emt 0:00:02]} 29. Bh6 {[%emt 0:01:24]} Qf7 {[%emt 0:00:12]} 30. Qe3 {[%emt 0:01:23]} Re8 {[%emt 0:03:06]} 31. Bf4 {[%emt 0:02:03]} Qg7 {[%emt 0:05:42]} 32. Qd3 {[%emt 0:07:01]} Qd7 {[%emt 0:02:07]} 33. Be5 {[%emt 0:02:11]} Bxe5 {[%emt 0:00:32]} 34. Nxe5 {[%emt 0:00:17]} Qc7 {[%emt 0:00:51]} 35. Qc3 {[%emt 0:01:26]} Re7 {[%emt 0:04:34]} 36. Qb4 {[%emt 0:01:20]} Kg7 {[%emt 0:00:35]} 37. Re3 {[%emt 0:02:10]} Kf6 {[%emt 0:02:46]} 38. h4 {[%emt 0:07:15]} Kg7 {[%emt 0:04:04]} 39. Qa4 {[%emt 0:03:19]} f4 {[%emt 0:01:45]} 40. Re1 {[%emt 0:00:14]} Nxc5 {[%emt 0:00:37]} 41. dxc5 {[%emt 0:33:58]} Rxe5 {[%emt 0:30:10]} 42. Qd4 {[%emt 0:00:04]} Kf6 {[%emt 0:00:09]} 43. Qxf4+ {[%emt 0:00:05]} Ke6 {[%emt 0:00:15]} 44. Re3 {[%emt 0:01:46]} Qb8 {[%emt 0:00:00]} 45. Qg4+ {[%emt 0:00:00]} Ke7 {[%emt 0:00:00]} 46. Qg5+ {[%emt 0:00:00]} Ke6 {[%emt 0:00:00]} 47. Qg4+ {[%emt 0:00:00]} Ke7 {[%emt 0:00:00]} 48. Qg3 {[%emt 0:00:00]} Qb1+ {[%emt 0:00:00]} 49. Kh2 {[%emt 0:00:00]} Rxe3 {[%emt 0:00:00]} 50. Qc7+ {[%emt 0:00:00]} Kf8 {[%emt 0:00:00]} 51. fxe3 {[%emt 0:00:00]} Qe1 {[%emt 0:00:00]} 52. Qxh7 {[%emt 0:00:00]} Qxe3 {[%emt 0:00:00]} 53. Qxg6 {[%emt 0:00:00]} Qxc5 {[%emt 0:00:00]} 54. Qf6+ {[%emt 0:00:00]} Kg8 {[%emt 0:00:00]} 55. h5 {[%emt 0:00:00]} Qf8 {[%emt 0:00:00]} 56. Qxc6 {[%emt 0:00:00]} Qf5 {[%emt 0:00:00]} 57. Qe8+ {[%emt 0:00:00]} Kg7 {[%emt 0:00:00]} 58. Qe2 {[%emt 0:00:00]} d4 {[%emt 0:01:59]} 59. g4 {[%emt 0:00:00]} Qf4+ {[%emt 0:04:16]} 60. Kh3 {[%emt 0:00:00]} Kf6 {[%emt 0:01:00]} 61. Kh4 {[%emt 0:00:00]} Qg5+ {[%emt 0:01:18]} 62. Kg3 {[%emt 0:00:00]} Qc5 {[%emt 0:00:31]} 63. Qe4 {[%emt 0:00:00]} Qc3+ {[%emt 0:00:43]} 64. Kh4 {[%emt 0:00:00]} Qd2 {[%emt 0:01:11]} 65. Qf5+ {[%emt 0:00:00]} Kg7 {[%emt 0:00:46]} 66. Qg6+ {[%emt 0:00:00]} Kh8 {[%emt 0:00:30]} 67. Qf6+ {[%emt 0:00:00]} Kh7 {[%emt 0:00:18]} 68. Qe7+ {[%emt 0:01:33]} Kg8 {[%emt 0:00:23]} 69. Qd8+ {[%emt 0:02:22]} Kg7 {[%emt 0:00:10]} 70. Qc7+ {[%emt 0:00:15]} Kg8 {[%emt 0:00:20]} 71. Qb8+ {[%emt 0:01:30]} Kg7 {[%emt 0:00:31]} 72. Qe5+ {[%emt 0:00:06]} Kg8 {[%emt 0:01:10]} 73. g5 {[%emt 0:00:32]} Qf2+ {[%emt 0:00:36]} 74. Qg3 {[%emt 0:00:24]} Qb2 {[%emt 0:00:38]} 75. Qf4 {[%emt 0:01:45]} Qb6 {[%emt 0:00:39]} 76. h6 {[%emt 0:01:09]} Qd8 {[%emt 0:00:16]} 77. Qe5 {[%emt 0:01:23]} Qd7 {[%emt 0:00:35]} 78. g6 {[%emt 0:00:09]} Qd8+ {[%emt 0:00:10]} 79. Kh5 {[%emt 0:00:06]} 1-0

[Event "Teplice Open 2019"]
[Site "Teplice"]
[Date "2019.06.22"]
[Round "8.20"]
[White "Gungl, Theo"]
[Black "Abdumalik, Zhansaya"]
[Result "1/2-1/2"]
[ECO "B42"]
[WhiteElo "2313"]
[BlackElo "2464"]
[Annotator "ChessBase"]
[PlyCount "60"]
[EventDate "2019.06.15"]
[EventType "swiss"]
[EventCountry "CZE"]
[SourceTitle "playchess.com"]
[Source "ChessBase"]
[SourceQuality "1"]
[TimeControl "40/5400+30:1800+30"]

1. e4 {[%emt 0:00:00]} c5 {[%emt 0:00:00]} 2. Nf3 {[%emt 0:00:00]} e6 {[%emt 0:00:00]} 3. d4 {[%emt 0:00:00]} cxd4 {[%emt 0:00:00]} 4. Nxd4 {[%emt 0:00:00]} a6 {[%emt 0:00:00]} 5. Bd3 {[%emt 0:00:00]} g6 {[%emt 0:00:00]} 6. c4 {[%emt 0:00:12]} Bg7 {[%emt 0:02:01]} 7. Nb3 {[%emt 0:00:07]} Ne7 {[%emt 0:01:19]} 8. O-O {[%emt 0:00:09]} O-O {[%emt 0:03:15]} 9. Nc3 {[%emt 0:01:06]} d5 {[%emt 0:07:54]} 10. cxd5 {[%emt 0:04:36]} exd5 {[%emt 0:00:09]} 11. Nxd5 {[%emt 0:01:31]} Nxd5 {[%emt 0:00:33]} 12. exd5 {[%emt 0:00:06]} Qxd5 {[%emt 0:00:27]} 13. Qe2 {[%emt 0:05:32]} Qd8 {[%emt 0:10:07]} 14. Be3 {[%emt 0:08:35]} Nc6 {[%emt 0:03:10]} 15. Rad1 {[%emt 0:03:27]} Qe7 {[%emt 0:05:06]} 16. Rfe1 {[%emt 0:07:06]} Re8 {[%emt 0:06:01]} 17. Qd2 {[%emt 0:02:12]} Qc7 {[%emt 0:18:59]} 18. Bf4 {[%emt 0:14:37]} Ne5 {[%emt 0:05:35]} 19. Rc1 {[%emt 0:13:04]} Qd6 {[%emt 0:06:05]} 20. Be4 {[%emt 0:01:48]} Qxd2 {[%emt 0:04:23]} 21. Nxd2 {[%emt 0:01:10]} h6 {[%emt 0:04:18]} 22. Nf3 {[%emt 0:03:26]} Nxf3+ {[%emt 0:11:10]} 23. Bxf3 {[%emt 0:00:07]} Rxe1+ {[%emt 0:01:00]} 24. Rxe1 {[%emt 0:00:02]} Be6 {[%emt 0:00:15]} 25. Bxb7 {[%emt 0:09:24]} Ra7 {[%emt 0:01:58]} 26. Bc6 {[%emt 0:00:32]} Bxb2 {[%emt 0:01:42]} 27. Bb8 {[%emt 0:04:05]} Re7 {[%emt 0:00:02]} 28. Bd6 {[%emt 0:00:10]} Ra7 {[%emt 0:00:03]} 29. Bb8 {[%emt 0:03:24]} Re7 {[%emt 0:00:04]} 30. Bd6 {[%emt 0:00:04]} Ra7 {[%emt 0:00:04]} 1/2-1/2

[Event "Teplice Open 2019"]
[Site "Teplice"]
[Date "2019.06.22"]
[Round "8.21"]
[White "Simek, Petr (86)"]
[Black "Cawdery, Daniel"]
[Result "0-1"]
[ECO "D71"]
[WhiteElo "2300"]
[BlackElo "2428"]
[Annotator "NA"]
[PlyCount "82"]
[EventDate "2019.06.15"]
[EventType "swiss"]
[EventCountry "CZE"]
[SourceTitle "playchess.com"]
[Source "ChessBase"]
[SourceQuality "1"]
[TimeControl "40/5400+30:1800+30"]

1. d4 {[%emt 0:00:00]} Nf6 {[%emt 0:00:00]} 2. c4 {[%emt 0:00:00]} g6 {[%emt 0:00:00]} 3. g3 {[%emt 0:00:00]} Bg7 {[%emt 0:01:03]} 4. Bg2 {[%emt 0:00:00]} d5 {[%emt 0:00:12]} 5. cxd5 {[%emt 0:00:04]} Nxd5 {[%emt 0:00:02]} 6. Nf3 {[%emt 0:00:12]} Nb6 {[%emt 0:00:04]} 7. Nc3 {[%emt 0:00:20]} Nc6 {[%emt 0:00:27]} 8. e3 {[%emt 0:00:08]} e5 {[%emt 0:00:32]} 9. d5 {[%emt 0:00:14]} Ne7 {[%emt 0:00:11]} 10. e4 {[%emt 0:00:33]} c6 {[%emt 0:00:03]} 11. d6 {[%emt 0:00:09]} Ng8 {[%emt 0:00:02]} 12. b3 {[%emt 0:07:25]} f6 {[%emt 0:00:08]} 13. O-O {[%emt 0:20:14]} Nh6 {[%emt 0:00:44]} 14. Ba3 {[%emt 0:00:21]} Nf7 {[%emt 0:02:51]} 15. Qc2 {[%emt 0:04:50]} Be6 {[%emt 0:03:42]} 16. Rad1 {[%emt 0:01:37]} Qd7 {[%emt 0:09:17]} 17. Nh4 {[%emt 0:16:46]} O-O {[%emt 0:11:03]} 18. f4 {[%emt 0:03:18]} Bg4 {[%emt 0:00:50]} 19. Rd3 {[%emt 0:01:14]} Rfd8 {[%emt 0:04:19]} 20. Nd1 {[%emt 0:08:19]} Bxd1 {[%emt 0:04:22]} 21. Rfxd1 {[%emt 0:00:44]} Nc8 {[%emt 0:15:52]} 22. Qc4 {[%emt 0:20:12]} b5 {[%emt 0:07:32]} 23. Qc2 {[%emt 0:00:21]} Bf8 {[%emt 0:01:34]} 24. Rc1 {[%emt 0:00:43]} Bxd6 {[%emt 0:03:14]} 25. Bxd6 {[%emt 0:01:31]} Ncxd6 {[%emt 0:00:29]} 26. Rc3 {[%emt 0:00:31]} Rac8 {[%emt 0:00:30]} 27. h3 {[%emt 0:00:30]} Qe7 {[%emt 0:00:30]} 28. Nf3 {[%emt 0:00:30]} b4 {[%emt 0:00:30]} 29. Rc5 exf4 {[%emt 0:19:06]} 30. Nd4 {[%emt 0:11:09]} Nxe4 {[%emt 0:02:56]} 31. Rxc6 {[%emt 0:01:42]} Nc3 {[%emt 0:00:22]} 32. Qf2 {[%emt 0:01:50]} fxg3 {[%emt 0:01:23]} 33. Qxg3 {[%emt 0:00:02]} Rxc6 {[%emt 0:02:13]} 34. Nxc6 {[%emt 0:00:13]} Qc5+ {[%emt 0:00:17]} 35. Kh2 {[%emt 0:00:15]} Rc8 {[%emt 0:02:05]} 36. a3 {[%emt 0:00:15]} a5 {[%emt 0:00:40]} 37. axb4 {[%emt 0:00:05]} axb4 {[%emt 0:00:07]} 38. Qf4 {[%emt 0:00:51]} Kg7 {[%emt 0:05:02]} 39. Rf1 {[%emt 0:01:26]} Rxc6 {[%emt 0:01:12]} 40. Bxc6 {[%emt 0:00:10]} Qxc6 {[%emt 0:00:01]} 41. Qxb4 {[%emt 0:30:08]} Ne4 {[%emt 0:30:55]} 0-1